{"text_format":"1","workbook":"xlsx","n_sheets":13,"sheets":["1. Forside","2. Samlet prisloft","3. Driftsomkostninger","4. Historiske investeringer","5. Gennemførte investeringer","6. Korrektion investeringer","7. Planlagte investeringer","8. 1-1 omkostninger","9. Miljø- og servicemål","10. Klimatilpasning","11. Nettofinansielle poster","12. Over- eller underdækning","13. Kontrol med indtægtsrammen"],"not_rendered":{"charts":0,"images":0,"macros":1,"external_links":0,"defined_names":0,"comments":0,"pivot_tables":0},"unopened":[],"bounds":{"document_bytes":16777216,"sheet_cells":100000,"rows_first":2000,"rows_last":500,"rows_between":2000,"halvings":0,"cell_chars":16384,"cell_head_chars":4096},"cells_cut":0,"cells_raw":0,"read":"whole","date_system":"1900"}

{"sheet":"1. Forside","index":0,"n_rows":27,"n_cols":4,"rows_kept":27,"cut":false,"hidden":false,"merged":[[21,3,21,5],[20,3,20,5],[19,3,19,5],[18,3,18,5],[7,3,7,5],[12,3,12,5],[15,3,15,5],[16,3,16,5],[17,3,17,5],[26,3,26,5],[25,3,25,5],[24,3,24,5],[23,3,23,5],[22,3,22,5]]}
["Haderslev Spildevand A/S"]
[]
[]
[]
[]
[]
[]
[null,null,null,"Bilag A"]
[]
[]
[]
[]
[null,null,null,"Indholdsfortegnelse"]
[]
[]
[null,null,"Fane nr. 2","Samlet prisloft "]
[null,null,"Fane nr. 3","Driftsomkostninger"]
[null,null,"Fane nr. 4","Historiske investeringer "]
[null,null,"Fane nr. 5","Gennemførte investeringer"]
[null,null,"Fane nr. 6","Korrektion investeringer"]
[null,null,"Fane nr. 7","Planlagte investeringer"]
[null,null,"Fane nr. 8","1:1 omkostninger"]
[null,null,"Fane nr. 9","Miljø- og servicemål"]
[null,null,"Fane nr. 10","Klimatilpasning"]
[null,null,"Fane nr. 11","Nettofinansielle poster"]
[null,null,"Fane nr. 12","Over- eller underdækning"]
[null,null,"Fane nr. 13","Kontrol med indtægtsrammen og oversigt over ekstraordinære effektiviseringsgevinster"]

{"sheet":"2. Samlet prisloft","index":1,"n_rows":39,"n_cols":6,"rows_kept":39,"cut":false,"hidden":false,"merged":[[3,1,3,5]]}
[{"$f":"'1. Forside'!A1","v":"Haderslev Spildevand A/S"}]
[]
[]
[null,"Fane 2. Samlet prisloft for 2015"]
[]
[null,"Driftsomkostninger"]
[null,"Korrigerede driftsomkostninger i prisloftet for 2014",{"$f":"'3. Driftsomkostninger'!C18","v":37134586.192368701},"kr."]
[null,"Bortfald af væsentlige omkostninger",{"$f":"-'3. Driftsomkostninger'!C23","v":0},"kr."]
[null,"Korrektion for periodevise driftsomkostninger",{"$f":"'3. Driftsomkostninger'!C29","v":-722579},"kr."]
[null,"Korrektion for prisudviklingen 2014-2015",{"$f":"'3. Driftsomkostninger'!C35","v":29129.605753894961},"kr."]
[null,"Forhøjelse til effektivt niveau iht. benchmarkingen",{"$f":"'3. Driftsomkostninger'!C41","v":0},"kr."]
[null,"Korrektion for generelt effektiviseringskrav",{"$f":"-'3. Driftsomkostninger'!C47","v":-160212.8316464223},"kr."]
[null,"Korrektion for individuelt effektiviseringskrav",{"$f":"-'3. Driftsomkostninger'!C56","v":-1370224.4205281967},"kr."]
[null,"Driftsomkostninger i alt",{"$f":"SUM(C7:C13)","v":34910699.545947984},"kr.",{"$f":"C14","v":34910699.545947984}," kr."]
[null,"Investeringer"]
[null,"Tillæg for historiske investeringer",{"$f":"'4. Historiske investeringer'!C9","v":53737767.92883119},"kr."]
[null,"Tillæg for gennemførte investeringer i 2011-2013",{"$f":"'5. Gennemførte investeringer'!F26","v":5693733.6599999992},"kr."]
[null,"Korrektion af tillæg for planlagte investeringer vedrørende 2013  ",{"$f":"'6. Korrektion investeringer'!C10","v":-917294.73333333386},"kr."]
[null,"Tillæg for planlagte investeringer i 2014 og 2015",{"$f":"'7. Planlagte investeringer'!F41","v":4666266.666666667},"kr."]
[null,"Investeringstillæg i alt",{"$f":"SUM(C16:C19)","v":63180473.522164516},"kr.",{"$f":"C20","v":63180473.522164516}," kr."]
[null,"Øvrige omkostninger mv."]
[null,"Tillæg for 1:1 omkostninger i 2015",{"$f":"'8. 1-1 omkostninger'!C11","v":3233000},"kr."]
[null,"Tillæg vedr. revisorerklæringer og DANVA/FVD-kontingent",{"$f":"'8. 1-1 omkostninger'!C17","v":130000},"kr."]
[null,"Korrektion ift. faktiske 1:1 omkostninger i 2013",{"$f":"'8. 1-1 omkostninger'!C23","v":1536817},"kr."]
[null,"Tillæg for driftsomkostninger til miljø- og servicemål i 2015",{"$f":"'9. Miljø- og servicemål'!C8","v":273750},"kr."]
[null,"Korrektion ift. faktiske driftsomkostninger til miljø- og servicemål i 2013",{"$f":"'9. Miljø- og servicemål'!C14","v":-39476},"kr."]
[null,"Tillæg for driftsomkostninger til medfinansiering af klimatilpasningsprojekter i 2015",{"$f":"'10. Klimatilpasning'!C9","v":0},"kr."]
[null,"Korrektion ift. faktiske omkostninger til medfinansiering af klimatilpasningsprojekter i 2013",{"$f":"'10. Klimatilpasning'!C15","v":0},"kr."]
[null,"Tillæg/fradrag for nettofinansielle poster i 2015",{"$f":"'11. Nettofinansielle poster'!C9","v":781000},"kr."]
[null,"Korrektion ift. faktiske nettofinansielle poster i 2013",{"$f":"'11. Nettofinansielle poster'!C15","v":-841144},"kr."]
[null,"Øvrige omkostninger mv. i alt",{"$f":"SUM(C22:C30)","v":5073947},"kr.",{"$f":"C31","v":5073947}," kr."]
[null,"Historisk over- eller underdækning"]
[null,"Tillæg/fradrag for over- eller underdækning til og med 2010",{"$f":"'12. Over- eller underdækning'!C11","v":700861},"kr.",{"$f":"C33","v":700861}," kr."]
[null,"Korrektion i forhold til tidligere indtægtsramme "]
[null,"Korrektion for overholdelse af indtægtsramme i prisloft 2013",{"$f":"'13. Kontrol med indtægtsrammen'!E27","v":7746061.8253110051},"kr.",{"$f":"C35","v":7746061.8253110051}," kr."]
[null,"Samlet prisloft"]
[null,"Indtægtsramme i 2015 ",null,null,{"$f":"SUM(E14:E35)","v":111612042.8934235}," kr."]
[null,"Debiteret vandmængde i 2013",null,null,2335303," m3"]
[null,"Prisloft 2015",null,null,{"$f":"E37/E38","v":47.793388221324385}," kr./m3"]

{"sheet":"3. Driftsomkostninger","index":2,"n_rows":56,"n_cols":4,"rows_kept":56,"cut":false,"hidden":false,"merged":[[3,1,3,3]]}
[{"$f":"'1. Forside'!A1","v":"Haderslev Spildevand A/S"}]
[]
[]
[null,"Fane 3. Driftsomkostninger "]
[]
[null,"Driftsomkostningerne i prisloftet for 2014"]
[null,"Korrigerede driftsomkostninger i prisloftet for 2013 (DOiPL 2013)",38453473.095929757,"kr."]
[null,"Prisfremskrivning 1,5 pct.",{"$f":"0.015*SUM(C7:C7)","v":576802.09643894632},"kr."]
[null,"Generelt effektiviseringskrav (0 pct.)",0,"kr."]
[null,"Individuelt effektiviseringskrav ",-1895689,"kr."]
[null,"Driftsomkostningerne i prisloftet for 2014 (DOiPL 2014)",{"$f":"SUM(C7:C10)","v":37134586.192368701},"kr."]
[]
[]
[null,"Forskel i § 8, stk. 2, pkt. 1 - tillæg"]
[null,"Godkendt tillæg i PL2014 prisfremskrevet til 2014-niveau",1488062.8979719644,"kr."]
[null,"Godkendt tillæg i PL2015 prisfremskrevet til 2014-niveau",1488062.8979719644,"kr."]
[null,"Forskel",{"$f":"C16-C15","v":0},"kr."]
[null,"Korrigerede driftsomkostninger i prisloftet for 2014",{"$f":"C11+C17","v":37134586.192368701},"kr."]
[]
[]
[null,"Korrektion for forventet bortfald af væsentlige omkostninger"]
[null,"Selskabets indberettede bortfald af væsentlige omkostninger inden 2015",0,"kr."]
[null,"Korrektion for forventet bortfald ",{"$f":"SUM(C22:C22)","v":0},"kr."]
[]
[]
[null,"Korrektion for periodevise driftsomkostninger"]
[null,"Del af godkendt tillæg i PL2013 vedrørende omkostninger i 2013",722579,"kr."]
[null,"Faktisk udgift til periodevise driftsomkostninger i 2013",0,"kr."]
[null,"Korrektion for periodevise driftsomkostninger",{"$f":"C28-C27","v":-722579},"kr."]
[]
[]
[null,"Korrektion for prisudviklingen fra 2014-2015"]
[null,"Driftsomkostningerne i prisloftet for 2014",{"$f":"C18-C23+C29","v":36412007.192368701},"kr."]
[null,"Prisudvikling 2014 - 2015 ",0.08,"pct."]
[null,"Korrektion for prisudvikling",{"$f":"C33*(C34/100)","v":29129.605753894961},"kr."]
[]
[]
[null,"Eventuel forhøjelse til effektivt niveau iht. benchmarkingen"]
[null,"Selskabets effektive driftsomkostninger iht. benchmarkingen",25892891.629187588,"kr."]
[null,"Selskabets pristalskorrigerede driftsomkostninger i 2015-niveau",{"$f":"C33+C35","v":36441136.7981226},"kr."]
[null,"Eventuel forhøjelse til effektivt niveau",{"$f":"IF(C40>C39,0,C39-C40)","v":0},"kr."]
[]
[]
[null,"Korrektion for generelt effektiviseringskrav"]
[null,"Driftsomkostningerne i prisloftet for 2014",{"$f":"C33","v":36412007.192368701},"kr. "]
[null,"Generelt effektiviseringskrav ",0.44,"pct."]
[null,"Endeligt generelt effektiviseringskrav",{"$f":"C45*(C46/100)","v":160212.8316464223},"kr. "]
[]
[]
[null,"Korrektion for individuelt effektiviseringskrav"]
[null,"Rå effektiviseringspotentiale",10356431.665209148,"kr."]
[null,"Effektiviseringspotentiale efter eventuel korrektion for særlige forhold",10356431.665209148,"kr."]
[null,"Effektiviseringspotentiale efter forsigtighedshensyn",5480897.6821127869,"kr."]
[null,"Effektiviseringspotentiale efter eventuel korrektion for sammensætning af signifikante costdrivere",5480897.6821127869,"kr. "]
[null,"Umiddelbart effektiviseringskrav",{"$f":"C54/4","v":1370224.4205281967},"kr."]
[null,"Endeligt individuelt effektiviseringskrav",{"$f":"IF(C55>0.05*C33,0.05*C33,IF(C55<0.01*C33,0,C55))","v":1370224.4205281967},"kr. "]

{"sheet":"4. Historiske investeringer","index":3,"n_rows":9,"n_cols":4,"rows_kept":9,"cut":false,"hidden":false,"merged":[[3,1,3,2]]}
[{"$f":"'3. Driftsomkostninger'!A1","v":"Haderslev Spildevand A/S"}]
[]
[]
[null,"Fane 4. Historiske investeringer "]
[]
[null,"Tillæg for historiske investeringer "]
[null,"Værdi af selskabets materielle anlægsaktiver pr. 1. januar 2010",2371860743.6605725,"kr."]
[null,"Den årlige standardafskrivning på de materielle anlægsaktiver iht. POLKA",53737767.92883119,"kr."]
[null,"Tillæg i alt i 2015",{"$f":"C8","v":53737767.92883119},"kr."]

{"sheet":"5. Gennemførte investeringer","index":4,"n_rows":26,"n_cols":7,"rows_kept":26,"cut":false,"hidden":false,"merged":[[3,1,3,5],[6,5,6,6]]}
[{"$f":"'4. Historiske investeringer'!A1","v":"Haderslev Spildevand A/S"}]
[]
[]
[null,"Fane 5. Gennemførte investeringer i 2010 - 2013 "]
[]
[null,"Tillæg for gennemførte investeringer i 2013"]
[null," Beskrivelse af investeringen   ","Årstal ","Std. levetid (år)   "," Anskaffelses-pris (kr.)","Afskrivning "]
[null,"Tryksatte minipumpestationer (husstandssystemer)",2013,30,608339,{"$f":"E8/D8","v":20277.966666666667},"kr."]
[null,"Pumpestationer i brønde (< 6,25 m2), Konstruktioner",2013,50,921911,18438.22,"kr."]
[null,"Pumpestationer i brønde (< 6,25 m2), Mek/EL",2013,20,2095536,104776.8,"kr."]
[null,"Pumpestationer i brønde (< 6,25 m2), SRO",2013,10,243000,24300,"kr."]
[null,"Pumpestationer m. overbygning (< 20 m2), Konstruktioner",2013,50,420885,8417.7000000000007,"kr."]
[null,"Jordbassin Klasse B",2013,50,3948629,78972.58,"kr."]
[null,"Andre bygninger (tekniske installationer, målere mv.)",2013,75,35814,477.52,"kr."]
[null,"Indløb med riste, Konstruktioner",2013,60,275879,4597.9833333333336,"kr."]
[null,"Indløb med riste, Mek/EL",2013,20,4072314,203615.7,"kr."]
[null,"Indløb med riste, SRO",2013,10,559370,55937,"kr."]
[null,"Beluftningstanke, Mek/EL",2013,20,49564,2478.1999999999998,"kr."]
[null,"Beluftningstanke, SRO",2013,10,39307,3930.7,"kr."]
[null,"Slutafvanding, slam - højteknologisk (centrifuger), Konstruktioner",2013,60,1975169,32919.48333333333,"kr."]
[null,"Ledningsnet = Ø 200 mm",2013,75,37053426,494045.68,"kr."]
[null,"Brønde",2013,75,8177185,109029.13333333333,"kr."]
[null,"Stik",2013,75,3749060,49987.466666666667,"kr."]
[null,"Tillæg for 2013 ",null,null,null,{"$f":"SUM(F8:F23)","v":1212202.1333333331},"kr."]
[null,"Tillæg for 2010 - 2012",null,null,null,4481531.5266666664,"kr."]
[null,"Samlet tillæg for gennemførte investeringer",null,null,null,{"$f":"F24+F25","v":5693733.6599999992},"kr."]

{"sheet":"6. Korrektion investeringer","index":5,"n_rows":10,"n_cols":4,"rows_kept":10,"cut":false,"hidden":false,"merged":[[3,1,3,3]]}
[{"$f":"'5. Gennemførte investeringer'!A1","v":"Haderslev Spildevand A/S"}]
[]
[]
[null,"Fane 6. Korrektion af tillæg for planlagte investeringer"]
[]
[null,"Korrektion af tillæg for planlagte investeringer vedr. 2013"]
[null,"Tillæg for planlagte investeringer i 2013 i prisloft 2013",1538667,"kr."]
[null,"Tillæg for planlagte investeringer i 2013 i prisloft 2014",1803032,"kr."]
[null,"Selskabets faktiske afskrivninger på gennemførte investeringer i 2013",{"$f":"'5. Gennemførte investeringer'!F24","v":1212202.1333333331},"kr."]
[null,"Korrektion af tillæg for planlagte investeringer vedr. 2013",{"$f":"C9-C7+C9-C8","v":-917294.73333333386},"kr."]

{"sheet":"7. Planlagte investeringer","index":6,"n_rows":41,"n_cols":7,"rows_kept":41,"cut":false,"hidden":false,"merged":[[6,5,6,6],[3,1,3,6]]}
[{"$f":"'6. Korrektion investeringer'!A1","v":"Haderslev Spildevand A/S"}]
[]
[]
[null,"Fane 7. Planlagte investeringer "]
[]
[null,"Tillæg for planlagte investeringer i 2014 og 2015"]
[null,"Beskrivelse af investeringen   ","Årstal ","Std. levetid (år)   ","Anskaffelses-pris (kr.)   ","Afskrivning"]
[null,"Ledningsnet = Ø 200 mm",2014,75,10800000,{"$f":"E8/D8","v":144000},"kr."]
[null,"Ledningsnet = Ø 200 mm",2014,75,7600000,{"$f":"E9/D9","v":101333.33333333333},"kr."]
[null,"Ledningsnet = Ø 200 mm",2014,75,55000000,733333.33333333337,"kr."]
[null,"Ledningsnet = Ø 200 mm",2014,75,1500000,20000,"kr."]
[null,"Ledningsnet = Ø 200 mm",2014,75,22000000,293333.33333333331,"kr."]
[null,"Ledningsnet = Ø 200 mm",2014,75,1700000,22666.666666666668,"kr."]
[null,"Ledningsnet > Ø 1600 mm (rørbassiner og transportledninger)",2014,75,20200000,269333.33333333331,"kr."]
[null,"Ledningsnet > Ø 1600 mm (rørbassiner og transportledninger)",2014,75,14000000,186666.66666666666,"kr."]
[null,"Forafvanding, slam, Mek/EL",2014,20,2450000,122500,"kr."]
[null,"Forafvanding, slam, SRO",2014,10,500000,50000,"kr."]
[null,"Rådnetanke, slam, Konstruktioner",2014,60,8055000,134250,"kr."]
[null,"Rådnetanke, slam, Konstruktioner",2014,60,1125000,18750,"kr."]
[null,"Pumpestationer i brønde (< 6,25 m2), Mek/EL",2014,20,1500000,75000,"kr."]
[null,"Arbejdsplads",2014,5,750000,150000,"kr."]
[null,"Køretøjer, personbil",2014,5,600000,120000,"kr."]
[null,"Arbejdsplads",2014,5,1452000,290400,"kr."]
[null,"Ledningsnet = Ø 200 mm",2015,75,7800000,104000,"kr."]
[null,"Ledningsnet = Ø 200 mm",2015,75,7800000,104000,"kr."]
[null,"Ledningsnet = Ø 200 mm",2015,75,31400000,418666.66666666669,"kr."]
[null,"Ledningsnet = Ø 200 mm",2015,75,13500000,180000,"kr."]
[null,"Ledningsnet = Ø 200 mm",2015,75,14800000,197333.33333333334,"kr."]
[null,"Ledningsnet = Ø 200 mm",2015,75,3300000,44000,"kr."]
[null,"Stik",2015,75,9700000,129333.33333333333,"kr."]
[null,"Andre bygninger (tekniske installationer, målere mv.)",2015,75,200000,2666.6666666666665,"kr."]
[null,"Ledningsnet > Ø 1600 mm (rørbassiner og transportledninger)",2015,75,20200000,269333.33333333331,"kr."]
[null,"Forklaring, SRO",2015,10,500000,50000,"kr."]
[null,"Rådnetanke, slam, Konstruktioner",2015,60,3310000,55166.666666666664,"kr."]
[null,"Pumpestationer i brønde (< 6,25 m2), Mek/EL",2015,20,1500000,75000,"kr."]
[null,"Arbejdsplads",2015,5,750000,150000,"kr."]
[null,"Køretøjer, personbil",2015,5,600000,120000,"kr."]
[null,"Arbejdsplads",2015,5,176000,35200,"kr."]
[null,"Tillæg for 2014",null,null,null,{"$f":"SUMIF(C8:C38,\"2014\",F8:F38)","v":2731566.666666667},"kr."]
[null,"Tillæg for 2015",null,null,null,{"$f":"SUMIF(C8:C38,\"2015\",F8:F38)","v":1934700.0000000002},"kr."]
[null,"Tillæg i alt",null,null,null,{"$f":"F39+F40","v":4666266.666666667},"kr."]

{"sheet":"8. 1-1 omkostninger","index":7,"n_rows":23,"n_cols":4,"rows_kept":23,"cut":false,"hidden":false,"merged":[[3,1,3,3],[13,1,13,3],[19,1,19,3]]}
[{"$f":"'7. Planlagte investeringer'!A1","v":"Haderslev Spildevand A/S"}]
[]
[]
[null,"Fane 8. 1:1 omkostninger"]
[]
[null,"Tillæg for budgetterede 1:1 omkostninger i 2015"]
[null,"Betaling til Forsyningssekretariatet",33000,"kr."]
[null,"Spildevandsafgift",2200000,"kr."]
[null,"Køb af varer og tjenesteydelser hos et andet prisloftreguleret vandselskab",500000,"kr."]
[null,"Ejendomsskatter",500000,"kr."]
[null,"Tillæg i alt ",{"$f":"SUM(C7:C10)","v":3233000},"kr."]
[]
[]
[null,"Tillæg for budgetterede nødvendige udgifter til revisorerklæringer samt ordinært medlemskab af DANVA og FVD i 2015"]
[null,"Betaling for ordinært medlemskab af DANVA/FVD",114000,"kr."]
[null,"Betaling for revisorerklæringer",16000,"kr."]
[null,"Tillæg i alt ",{"$f":"SUM(C15:C16)","v":130000},"kr."]
[]
[]
[null,"Korrektion af tillæg for faktiske 1:1 omkostninger (inkl. revisorerklæringer og ordinært medlemskab af DANVA/FVD) i 2013"]
[null,"Selskabets faktiske 1:1 omkostninger mv. i 2013, jf. reguleringsregnskabet",5236317,"kr."]
[null,"Tillæg for budgetterede 1:1 omkostninger mv. i prisloft 2013",3699500,"kr."]
[null,"Korrektion af tillæg for budgetterede 1:1 omkostninger mv. i 2013",{"$f":"C21-C22","v":1536817},"kr."]

{"sheet":"9. Miljø- og servicemål","index":8,"n_rows":14,"n_cols":4,"rows_kept":14,"cut":false,"hidden":false,"merged":[[3,1,3,3]]}
[{"$f":"'8. 1-1 omkostninger'!A1","v":"Haderslev Spildevand A/S"}]
[]
[]
[null,"Fane 9. Driftsomkostninger til miljø- og servicemål "]
[]
[null,"Tillæg for budgetterede driftsomkostninger til miljø- og servicemål i 2015"]
[null,"Henstandsordning for tilslutningsbidrag",273750,"kr."]
[null,"Tillæg i alt",{"$f":"SUM(C7:C7)","v":273750},"kr."]
[]
[]
[null,"Korrektion af tillæg for faktiske driftsomkostninger til miljø- og servicemål i 2013"]
[null,"Selskabets faktiske driftsomkostninger til miljø- og servicemål i 2013, jf. reguleringsregnskabet",338524,"kr."]
[null,"Tillæg for budgetterede driftsomkostninger til miljø- og servicemål i prisloft 2013",378000,"kr."]
[null,"Korrektion af tillæg for budgetterede driftsomkostninger til miljø- og servicemål i 2013",{"$f":"C12-C13","v":-39476},"kr."]

{"sheet":"10. Klimatilpasning","index":9,"n_rows":15,"n_cols":4,"rows_kept":15,"cut":false,"hidden":false,"merged":[[3,1,3,3],[11,1,11,3],[6,1,6,3]]}
[{"$f":"'9. Miljø- og servicemål'!A1","v":"Haderslev Spildevand A/S"}]
[]
[]
[null,"Fane 10. Medfinansiering af klimatilpasningsprojekter"]
[]
[]
[null,"Tillæg for budgetterede omkostninger til medfinansiering af klimatilpasningsprojekter i 2015"]
[null,null,0,"kr."]
[null,"Tillæg i alt",{"$f":" SUM(C8:C8)","v":0},"kr."]
[]
[]
[null,"Korrektion af tillæg for faktiske omkostninger til medfinansiering af klimatilpasningsprojekter i 2013"]
[null,"Selskabets faktiske driftsomkostninger til klimatilpasningsprojekter i 2013, jf. reguleringsregnskabet",0,"kr."]
[null,"Tillæg for budgetterede driftsomkostninger til klimatilpasningsprojekter i prisloft 2013",0,"kr."]
[null,"Korrektion af tillæg for budgetterede omkostninger til klimatilpasningsprojekter i 2013",{"$f":"C13-C14","v":0},"kr."]

{"sheet":"11. Nettofinansielle poster","index":10,"n_rows":15,"n_cols":4,"rows_kept":15,"cut":false,"hidden":false,"merged":[[3,1,3,3]]}
[{"$f":"'10. Klimatilpasning'!A1","v":"Haderslev Spildevand A/S"}]
[]
[]
[null,"Fane 11. Nettofinansielle poster"]
[]
[null,"Tillæg for budgetterede nettofinansielle poster i 2015"]
[null,"Budgetterede renteudgifter og gebyrer i 2015",781000,"kr."]
[null,"Budgetterede renteindtægter i 2015",0,"kr."]
[null,"Tillæg/fradrag i alt",{"$f":"C7-C8","v":781000},"kr."]
[]
[]
[null,"Korrektion af tillæg for faktiske nettofinansielle poster i 2013"]
[null,"Selskabets faktiske nettofinansielle poster i 2013, jf. reguleringsregnskabet",3356,"kr."]
[null,"Tillæg for budgetterede nettofinansielle poster i prisloft 2013",844500,"kr."]
[null,"Korrektion af tillæg for budgetterede nettofinansielle poster i 2013",{"$f":"C13-C14","v":-841144},"kr."]

{"sheet":"12. Over- eller underdækning","index":11,"n_rows":11,"n_cols":4,"rows_kept":11,"cut":false,"hidden":false,"merged":[[3,1,3,3]]}
[{"$f":"'11. Nettofinansielle poster'!A1","v":"Haderslev Spildevand A/S"}]
[]
[]
[null,"Fane 12. Over- eller underdækning til og med 2010"]
[]
[null,"Tillæg/fradrag for over- eller underdækning til og med 2010"]
[null,"Opgjort over- eller underdækning per 31. december 2010",10141000,"kr."]
[null,"Heraf beløb indregnet i prislofterne for 2011 - 2014",5935834,"kr."]
[null,"Endnu ikke indregnet over- eller underdækning",{"$f":"C7-C8","v":4205166},"kr."]
[null,"Resterende indregningsperiode (fastsat i prisloftet for 2012)",6,"år"]
[null,"Tillæg/fradrag i alt",{"$f":"IF(C7=0,0,C9/C10)","v":700861},"kr."]

{"sheet":"13. Kontrol med indtægtsrammen","index":12,"n_rows":38,"n_cols":12,"rows_kept":38,"cut":false,"hidden":false,"merged":[[3,1,3,5],[30,1,30,4],[5,1,5,5]]}
[{"$f":"'12. Over- eller underdækning'!A1","v":"Haderslev Spildevand A/S"}]
[]
[]
[null,"Fane 13. Korrektion for overholdelse af indtægtsrammen i prisloftet for 2013"]
[]
[null,"Samlet opgørelse vedrørende overholdelse af indtægtsrammen i prisloftet for 2013"]
[null,"Indtægtsramme i prisloftet for 2013",null,null,111911258.82531101,"kr."]
[null,"Ikke anvendt likviditet vedrørende investeringer i 2013"]
[null,"Tillæg for historiske investeringer ",54205374.869043179,"kr."]
[null,"Tillæg for gennemførte investeringer i 2011",3017793,"kr."]
[null,"Korrektion af tillæg for planlagte investeringer i 2011",977016,"kr."]
[null,"Tillæg for planlagte investeringer i 2012 og 2013",2788742,"kr."]
[null,"Indtægter fra tilslutningsbidrag",648591,"kr."]
[null,"Indtægter fra salg af anlægsaktiver",0,"kr."]
[null,"Erstatninger vedr. anlægsaktiver mv.",0,"kr."]
[null,"Ekstraordinær effektiviseringsgevinst anvendt til investeringer",0,"kr."]
[null,"Udgifter til investeringer",-71406577,"kr."]
[null,"Ikke anvendt likviditet vedr. investeringer i alt",{"$f":"SUM(C9:C17)","v":-9769060.1309568211},"kr.",{"$f":"IF(C18<0,0,-C18)","v":0},"kr."]
[null,"Ekstraordinære effektiviseringsgevinster anvendt til takstnedsættelse"]
[null,"Ekstraordinær effektiviseringsgevinst anvendt til takstnedsættelse",6221238,"kr.",{"$f":"-C20","v":-6221238},"kr."]
[null,"Korrektion af ikke opkrævet tillæg fra 2011 i prisloft 2013"]
[null,"Korrektion af ikke opkrævet tillæg fra 2011 i prisloft 2013",0,"kr.",{"$f":"-C22","v":0},"kr."]
[null,"Indtægter fra primære aktiviteter mv."]
[null,"Indtægter fra kubikmetertakster, faste takster, særbidrag, målergebyrer samt andre takster og gebyrer",97943959,"kr."]
[null,"Andre indtægter i prisloftåret, som selskabet har opnået i forbindelse med eller som følge af selskabets primære aktiviteter",0,"kr."]
[null,"Indtægter fra primære aktiviteter mv. i alt",{"$f":"SUM(C24:C25)","v":97943959},"kr.",{"$f":"-C26","v":-97943959},"kr."]
[null,"Tillæg/fradrag i prisloftet for 2015 i alt",null,null,{"$f":"E7+E18+E20+E22+E26","v":7746061.8253110051},"kr."]
[]
[]
[]
[null,"Oversigt over ekstraordinære effektiviseringsgevinster"]
[]
[null,null,2012,null,2013,null,2014,null,2015,null,2016]
[null,"Indhentet ekstraordinær effektiviseringsgevinst",4336049,"kr.",6223903.956267722,"kr.",null,"kr.",null,"kr.",null,"kr."]
[null,"Gevinst anvendt til investeringer",0,"kr.",0,"kr.",null,"kr.",null,"kr.",null,"kr."]
[null,"Gevinst anvendt til takstnedsættelse",4336049,"kr.",6221238,"kr.",null,"kr.",null,"kr.",null,"kr."]
[null,"Korrektion for  effektiviseringsgevinst der ikke er anvendt inden 4 år",0,"kr.",0,"kr.",null,"kr.",null,"kr.",{"$f":"IF(C38>SUM(E35:I36),C38-SUM(E35:I36),0)*-1","v":0},"kr."]
[null,"Resterende gevinst",{"$f":"C34-C35-C36","v":0},"kr.",{"$f":"C38+E34-E35-E36","v":2665.956267721951},"kr.",{"$f":"E38+G34-G35-G36","v":2665.956267721951},"kr.",{"$f":"G38+I34-I35-I36","v":2665.956267721951},"kr.",{"$f":"I38+K34-K35-K36+K37","v":2665.956267721951},"kr."]